[Event "Silves Open 2025"]
[Site "Fissul"]
[Date "2025.03.03"]
[Round "3.10"]
[White "Paiva, Manuel Maria Fonseca"]
[Black "Monteiro, Paulo Alexandre G"]
[Result "1/2-1/2"]
[Annotator "TA"]
[ECO "B23"]
[WhiteElo "1904"]
[BlackElo "2221"]
[PlyCount "86"]
[EventDate "2025.03.03"]
[EventType "swiss"]
[EventCountry "POR"]
[SourceTitle "playchess.com"]
[Source "ChessBase"]
[SourceQuality "1"]
[TimeControl "5400+30"]

{[%evp 9,86,29,37,33,49,34,34,41,35,46,50,53,45,7,5,17,16,30,16,0,111,-26,-28,-158,-166,-145,-160,-150,-104,-112,-110,-106,-118,-140,-126,-296,-297,-313,-247,-343,-26,-39,10,-287,-352,-472,-440,-357,-215,-150,0,0,0,0,0,0,0,0,0,0,0,0,0,0,0,0,0,0,0,0,0,0,0,0,0,0,0,0,0]} 1. e4 {[%emt 0:03:29]} c5 {[%emt 0:01:40]} 2. Nc3 {[%emt 0:00:06]} g6 {[%emt 0:00:22]} 3. d4 {[%emt 0:00:04]} cxd4 {[%emt 0:00:00]} 4. Qxd4 {[%emt 0:00:00]} Nf6 {[%emt 0:00:02]} 5. Be3 {[%emt 0:00:00]} Nc6 {[%emt 0:00:26]} 6. Qd2 {[%emt 0:00:00] B23: Closed Sicilian: Lines without g3.} Bg7 {[%emt 0:00:18]} 7. f3 {[%emt 0:00:00] Dodges Ng4} O-O {[%emt 0:00:12]} 8. O-O-O {[%emt 0:00:00] White is slightly better.} Qa5 {[%emt 0:02:02]} 9. Kb1 {[%emt 0:00:09]} d6 {[%emt 0:01:49]} 10. Nge2 {[%emt 0:00:09]} b5 {[%emt 0:02:19][%cal Bb7b5,Bb5b4][%mdl 32]} 11. Nc1 {[%emt 0:00:06][%cal Oc1b3] Black should prevent Nb3!.} b4 {[%emt 0:10:36]} 12. Nd5 {[%emt 0:00:02]} Nxd5 {[%emt 0:04:30]} 13. exd5 {[%emt 0:00:03]} Ne5 {[%emt 0:00:10]} 14. Bh6 {[%emt 0:00:05]} (14. Nb3 {simplifies} Qc7 15. Nd4 Bd7 16. Bh6) 14... Bf5 $146 {[%emt 0:22:42]} (14... Qb6 $11 {keeps the balance.}) (14... Bxh6 15. Qxh6 Bf5 16. g4 Bd7 17. h4 f6 18. Bd3 Rf7 19. g5 fxg5 20. h5 Nxd3 21. hxg6 {1-0 Kadric,D (2564)-Perez Gormaz,M (2400) Belgrade Serbia op 2021 (9)}) 15. Nb3 {[%emt 0:03:10]} (15. Bxg7 $1 $16 Kxg7 16. Nb3) 15... Bxh6 $11 {[%emt 0:01:31]} 16. Qxh6 {[%emt 0:00:10] [#]} (16. Nxa5 $11 Bxd2 17. Rxd2) 16... Bxc2+ $1 $17 {[%emt 0:02:39][%mdl 512]} 17. Kxc2 {[%emt 0:02:07]} Qxa2 {[%emt 0:00:19]} 18. Nd4 {[%emt 0:17:54]} Rfc8+ {[%emt 0:05:31] Black attacks} (18... Qxd5 19. Kb1 $16) (18... a5 $142 {[%cal Oa5a4] And now ...a4! would win.} 19. Kd2 Rfc8 (19... Qxd5 20. Ke1 $15)) 19. Kd2 {[%emt 0:00:09]} Qxb2+ {[%emt 0:02:36][%csl Ob4] Black has a strong passed pawn} 20. Ke1 {[%emt 0:00:08]} Rc5 {[%emt 0:02:56]} 21. h4 {[%emt 0:10:39]} Rxd5 {[%emt 0:13:03]} 22. Qf4 {[%emt 0:09:44]} (22. Qd2 $17 Qxd2+ 23. Rxd2) 22... h5 {[%emt 0:07:31]} 23. Be2 {[%emt 0:08:10] [#]} Rc8 $1 {[%emt 0:03:08]} 24. g4 {[%emt 0:01:08] [#]} Nd3+ $2 {[%emt 0:08:48]} 25. Rxd3 $11 {[%emt 0:03:16][%cal Od4c6] Black must now prevent Nc6!.} e5 {[%emt 0:01:06]} (25... Rc4 $15 {feels stronger.} 26. Kf2 (26. Rd2 Rcxd4 $16) 26... Rcxd4 (26... Rdxd4 27. Rxd4 Rxd4 28. Qc1 $15) 27. Rxd4 Rxd4) 26. Qg5 $2 {[%emt 0:05:54][%mdl 8192]} (26. Qd2 $11 Qc1+ 27. Bd1 (27. Qxc1 Rxc1+ 28. Bd1 exd4 $14) 27... Rxd4 28. Qxc1 Rxc1 29. Rxd4 exd4 30. Kd2) 26... Rxd4 $19 {[%emt 0:00:49]} 27. Rxd4 {[%emt 0:02:14]} exd4 {[%emt 0:00:58]} (27... Qxd4 28. gxh5 b3 29. hxg6 $17) 28. gxh5 {[%emt 0:01:16] [#]} d3 $1 {[%emt 0:00:39][%mdl 512]} 29. Bd1 {[%emt 0:03:15]} Re8+ {[%emt 0:00:29]} (29... Rc1 $17 {[%csl Gd3][%cal Rb2e2]} 30. Qd2 Qc2 31. hxg6 fxg6) 30. Kf1 $11 {[%emt 0:00:20] The position is equal. Dancing on a razor blade.} Re2 {[%emt 0:05:08] ( -> ...Qa1)} 31. hxg6 {[%emt 0:02:10]} Rf2+ {[%emt 0:00:06]} 32. Kg1 {[%emt 0:00:05]} Qd4 {[%emt 0:00:30] ( -> ...Rd2+)} 33. gxf7+ {[%emt 0:01:28]} Kxf7 {[%emt 0:00:06]} 34. Bb3+ {[%emt 0:00:28]} Ke8 $1 {[%emt 0:01:12]} 35. Ba4+ {[%emt 0:06:34]} Kf7 {[%emt 0:01:47]} 36. Qf5+ {[%emt 0:00:25]} (36. Bb3+ Ke8 37. Qg4 Qb6 38. Ba4+ Kf8 39. Qf5+ Kg7 40. Qg5+ (40. Qxd3 $2 {leads to mate.} Re2+) 40... Kh7 41. Qe7+ Kh6 42. Qf6+ Kh7 43. Qf7+ Kh6 44. Qf6+ Kh7 45. Qe7+ Kh8 46. Qf8+ Kh7 47. Qf7+ Kh6 48. Qf8+ Kh7 49. Qf7+) 36... Kg7 {[%emt 0:00:00] ( -> ...Ra2+)} 37. Qd7+ {[%emt 0:00:48]} Kf8 {[%emt 0:00:27]} 38. Qd8+ {[%emt 0:00:19]} Kg7 {[%emt 0:00:09]} 39. Qg5+ {[%emt 0:07:40]} Kh7 {[%emt 0:00:19]} 40. Qh5+ {[%emt 0:00:26]} Kg7 {[%emt 0:00:14] ( -> ...Rb2+)} 41. Qg5+ {[%emt 0:00:07]} Kh7 {[%emt 0:00:07] ( -> ...Re2+)} 42. Qe7+ {[%emt 0:00:21]} Kh8 {[%emt 0:00:38]} 43. Qe8+ {[%emt 0:01:13]} Kg7 {[%emt 0:00:36] Weighted Error Value: White=0.25 (precise) /Black=0.21 (precise)   Loses game:     	White=2     	---        Missed win:     	---       	Black=1      Mistake:       	White=2     	Black=4      Inaccurate:     	White=3     	Black=1      OK:         	White=12    	Black=16     Best:        	White=6     	Black=4      Strong:       	---       	Black=2      Brilliant:      	---       	Black=1} 1/2-1/2

[Event "Silves Open 2025"]
[Site "Fissul"]
[Date "2025.03.03"]
[Round "3.11"]
[White "Nguyen, Anh Khoi"]
[Black "Prata, Jose"]
[Result "0-1"]
[Annotator "TA"]
[ECO "D11"]
[WhiteElo "2520"]
[BlackElo "1839"]
[PlyCount "100"]
[EventDate "2025.03.03"]
[EventType "swiss"]
[EventCountry "POR"]
[SourceTitle "playchess.com"]
[Source "ChessBase"]
[SourceQuality "1"]
[TimeControl "5400+30"]

{[%evp 14,100,13,0,0,0,0,4,15,-7,26,12,15,0,0,0,60,64,68,47,71,63,68,66,66,66,68,61,67,67,68,70,83,22,45,24,20,21,21,26,25,25,20,36,238,216,218,145,152,134,133,123,133,130,458,358,514,511,536,545,542,536,593,593,543,455,443,444,423,306,288,289,275,0,0,0,0,-8,-8,-797,-811,-716,-537,-29993,-29994,-29994,-29995,-29995,-29988]} 1. d4 {[%emt 0:00:02]} d5 {[%emt 0:00:07]} 2. c4 {[%emt 0:00:03]} c6 {[%emt 0:00:05]} 3. Nf3 {[%emt 0:00:04]} Nf6 {[%emt 0:00:07]} 4. Qc2 {[%emt 0:00:07]} g6 {[%emt 0:01:33]} 5. Bf4 {[%emt 0:00:05]} Bf5 {[%emt 0:01:05]} 6. Qb3 {[%emt 0:00:06]} Qb6 {[%emt 0:01:17]} 7. e3 {[%emt 0:00:06] 7.e3 scores better than 7.c5.} Bg7 {[%emt 0:02:24]} 8. c5 {[%emt 0:03:35]} Qxb3 {[%emt 0:01:20] D11: Slav Defence: 3 Nf3 sidelines and 3...Nf6 4 e3 Bg4.} 9. axb3 {[%emt 0:00:10]} Nbd7 {[%emt 0:02:05]} 10. h3 {[%emt 0:02:26]} O-O {[%emt 0:01:55] The position is equal.} 11. b4 {[%emt 0:03:59]} a6 {[%emt 0:00:15]} 12. Nbd2 {[%emt 0:00:13]} Ne4 {[%emt 0:02:16]} 13. g4 {[%emt 0:06:16]} Nxd2 $1 {[%emt 0:02:09]} 14. Nxd2 {[%emt 0:00:12][%cal Bf3d2,Bd2b3,Bb3a5,Ba5b7,Bb7c5][%mdl 32]} Be6 {[%emt 0:01:37]} (14... Bc2 $11) 15. Nb3 $14 {[%emt 0:01:47]} f6 $146 {[%emt 0:01:27]} ({Predecessor:} 15... Nf6 16. Na5 Bc8 17. Bg3 Ne4 18. Bf4 f6 19. f3 Ng5 20. Be2 Nf7 21. Bc7 e5 22. Nb3 Be6 23. O-O Rae8 24. Rfe1 Rc8 25. Bb6 Rfe8 26. Na5 Re7 27. Kf2 {½-½ Ruecker,B (2242)-Mueller,M (2127) Lienz op 15th 2009 (8)}) 16. Na5 {[%emt 0:08:38]} Ra7 {[%emt 0:00:19]} 17. Bc7 {[%emt 0:01:37]} Rc8 {[%emt 0:06:12]} 18. Bb6 {[%emt 0:00:19]} Nxb6 {[%emt 0:00:22]} 19. cxb6 {[%emt 0:00:06] White plays on the queen side and is better} Raa8 {[%emt 0:00:10]} 20. Nxb7 {[%emt 0:00:08][%csl Ob6,Oa6,Oc6][%cal Ob7c5] White has a strong passed pawn. Black has weak pawns} Rcb8 {[%emt 0:01:07]} 21. Nc5 {[%emt 0:11:33]} (21. Bxa6 Bc8 (21... Rxb7 22. Bxb7 Rxa1+ 23. Kd2 $18) 22. Kd2 Bxb7 $17) 21... Bc8 {[%emt 0:02:53]} 22. Na4 {[%emt 0:03:04]} (22. Nxa6 $2 Rxb6 23. Bd3 (23. b5 $2 cxb5 24. Kd2 Rbxa6 $19) 23... e5 $19 (23... Bxa6 $2 24. h4 $19) (23... Rbxa6 24. Bxa6 Rxa6 25. Kd2 $17)) 22... e5 {[%emt 0:01:47] [#]} 23. e4 {[%emt 0:25:43]} Bf8 $1 $11 {[%emt 0:07:32]} 24. Bg2 {[%emt 0:09:26]} Bxb4+ {[%emt 0:00:16]} 25. Ke2 {[%emt 0:00:14]} exd4 {[%emt 0:07:04]} 26. exd5 {[%emt 0:00:08][%cal Be4d5,Bd5d6,Bd6d7][%mdl 32]} c5 {[%emt 0:00:15]} 27. Rhc1 $1 $36 {[%emt 0:07:59][%cal Ob6b7][%mdl 2048] White has the initiative.} Bd7 {[%emt 0:15:01]} 28. d6 $1 {[%emt 0:01:28]} Bb5+ $2 {[%emt 0:10:10]} ({Black should try} 28... Re8+ $14 29. Kf1 Rab8) 29. Kd1 $18 {[%emt 0:00:09]} c4 {[%emt 0:02:55][%cal Ob8e8]} 30. Bxa8 {[%emt 0:01:19]} Rxa8 {[%emt 0:00:14] [#]} 31. d7 {[%emt 0:02:32][%cal Oc1c4]} Kf7 {[%emt 0:11:22][%cal Oa8b8]} (31... Rb8 32. b7) 32. b7 {[%emt 0:02:04]} Rb8 {[%emt 0:00:37][%cal Ob4e7]} 33. Nb6 {[%emt 0:00:09]} c3 {[%emt 0:01:08][%mdl 8192]} (33... Ke6 $16 {is a better chance.} 34. Rxc4 (34. Nxc4 Kxd7 35. Nb6+ Kd6 $16) 34... Bxc4 35. Nxc4 Kxd7 36. Rxa6 Rxb7 37. Rxf6 Ke7) 34. bxc3 {[%emt 0:00:24]} dxc3 {[%emt 0:02:24]} (34... Be7 {was worth a try.} 35. c4 (35. cxd4 Rxb7 36. Rc8 Rxb6 $18) 35... Bxd7 36. Nxd7 Rxb7 37. Nxf6 (37. c5 Rxd7 38. Kd2 f5 $18) 37... Kxf6) 35. Kc2 {[%emt 0:00:25]} Bc6 {[%emt 0:05:44]} 36. Rd1 {[%emt 0:02:34]} Be7 {[%emt 0:01:00]} 37. Nc8 {[%emt 0:00:58] Nxe7 is the strong threat.} Bd8 {[%emt 0:01:36]} 38. Rxa6 {[%emt 0:00:21]} Bxb7 {[%emt 0:02:10]} 39. Ra7 {[%emt 0:00:18]} Ke6 {[%emt 0:01:46]} 40. Rd6+ {[%emt 0:04:41]} (40. Kxc3 Bxc8 $18) 40... Ke5 {[%emt 0:00:42]} 41. f4+ {[%emt 0:01:33]} Kxf4 {[%emt 0:00:45]} 42. Ra4+ {[%emt 0:00:05]} ({But not} 42. Kxc3 f5 43. Rd4+ Be4) 42... Ke5 {[%emt 0:01:45]} 43. Rc4 {[%emt 0:00:11]} (43. Kxc3 Bxc8 44. Rdd4 Bb7 $11) (43. Rb4 $18 Be4+ 44. Kxc3 Rxb4 45. Kxb4) 43... Be4+ $11 {[%emt 0:02:39]} 44. Rxe4+ $1 {[%emt 0:04:15]} Kxe4 {[%emt 0:00:02][%mdl 4096] Endgame KRB-KRN. Black is a pawn up.} 45. Re6+ {[%emt 0:00:24]} Kd4 {[%emt 0:00:35] ...Rb2+ would now be deadly.} 46. Re8 $2 {[%emt 0:00:49][%mdl 8192]} (46. Rd6+ $11 Ke5 47. Kxc3) 46... Rb2+ $19 {[%emt 0:00:29]} 47. Kc1 {[%emt 0:00:25] [#]} Kd3 $1 {[%emt 0:01:48]} 48. Rxd8 {[%emt 0:00:46]} (48. Re1 f5) 48... Rh2 {[%emt 0:00:56][%cal Rh2h1] Black mates.} 49. Kb1 {[%emt 0:00:26]} c2+ {[%emt 0:00:02]} 50. Kb2 {[%emt 0:00:05]} Kd2 {[%emt 0:02:01] Weighted Error Value: White=0.46/Black=0.34  Loses game:     	White=1     	Black=2      Missed win:     	White=1     	---        Mistake:       	White=1     	Black=2      Inaccurate:     	White=1     	Black=1      OK:         	White=17    	Black=12     Best:        	White=4     	Black=7      Strong:       	White=3     	Black=2} (50... Rxh3 $2 {is the wrong capture.} 51. Rf8 c1=Q+ 52. Kxc1 $18) 0-1

[Event "Silves Open 2025"]
[Site "Fissul"]
[Date "2025.03.03"]
[Round "3.13"]
[White "Espinosa Aranda, Angel"]
[Black "Avelino, Camila Biscaya"]
[Result "1-0"]
[Annotator "TA"]
[ECO "B20"]
[WhiteElo "2442"]
[BlackElo "1906"]
[PlyCount "77"]
[EventDate "2025.03.03"]
[EventType "swiss"]
[EventCountry "POR"]
[SourceTitle "playchess.com"]
[Source "ChessBase"]
[SourceQuality "1"]
[TimeControl "5400+30"]

{[%evp 9,77,45,43,35,62,23,25,13,13,14,24,18,33,0,14,-17,27,0,0,0,15,0,42,30,51,68,70,65,62,82,63,68,69,66,64,67,82,79,79,94,83,83,85,85,96,52,60,20,22,19,17,16,27,16,17,16,16,18,29,20,31,31,54,61,49,46,303,338,343,342]} 1. e4 {[%emt 1:31:00]} c5 {[%emt 1:31:00]} 2. Ne2 {[%emt 0:00:30]} d6 {[%emt 0:00:30]} 3. g3 {[%emt 0:00:30]} Nc6 {[%emt 0:00:30][%cal Bb8c6,Bc6d8,Bd8e6][%mdl 32]} 4. Bg2 {[%emt 0:00:30]} g6 {[%emt 0:00:30]} 5. c3 {[%emt 0:00:30]} e5 {[%emt 0:00:30]} 6. d4 {[%emt 0:00:30] B20: Sicilian: Unusual White 2nd moves.} Bg7 {[%emt 0:00:30]} 7. dxc5 {[%emt 0:00:30]} dxc5 {[%emt 0:00:30]} 8. Qxd8+ {[%emt 0:00:30] White has an edge.} Nxd8 {[%emt 0:00:30]} 9. Na3 {[%emt 0:00:30]} Ne7 {[%emt 0:00:30]} 10. Be3 {[%emt 0:00:30][%cal Oa3b5]} b6 {[%emt 0:00:30]} 11. Nb5 {[%emt 0:00:30]} O-O {[%emt 0:00:30] Not much happening anymore} 12. O-O {[%emt 0:00:30]} Ne6 $146 {[%emt 0:00:30]} (12... Ba6 13. a4 Ndc6 14. Rfd1 Rad8 15. Bh3 h6 16. Kf1 {½-½ Asadli,V (2449)-Ofitserian,B (2395) Moscow Aeroflot op-B 18th 2019 (6)}) 13. Rfd1 {[%emt 0:00:30]} Ba6 {[%emt 0:00:30]} 14. a4 {[%emt 0:00:30]} Rad8 {[%emt 0:00:30]} 15. Bf1 {[%emt 0:00:30]} Nc8 {[%emt 0:00:30]} 16. Bh3 {[%emt 0:00:30]} Nc7 {[%emt 0:00:30]} 17. Nxc7 {[%emt 0:00:30]} Bxe2 {[%emt 0:00:30]} 18. Rxd8 {[%emt 0:00:30]} Rxd8 {[%emt 0:00:30]} 19. Nd5 {[%emt 0:00:30] Bxc8 would now be deadly. White is more active.} Nd6 {[%emt 0:00:30]} 20. a5 {[%emt 0:00:30]} Nxe4 {[%emt 0:00:30]} 21. axb6 {[%emt 0:00:30]} axb6 {[%emt 0:00:30]} 22. Nxb6 {[%emt 0:00:30]} Nd2 {[%emt 0:00:30] [#]} 23. Bd7 $1 {[%emt 0:00:30]} Nc4 {[%emt 0:00:30]} 24. Bb5 {[%emt 0:00:30]} (24. Bxc5 $2 {perishes.} Nxb6 (24... Nxb2 25. Be7 $11) 25. Bxb6 Rxd7 $19) 24... Nxe3 {[%emt 0:00:30]} 25. Bxe2 {[%emt 0:00:30]} Nf5 {[%emt 0:00:30]} 26. Bf3 {[%emt 0:00:30]} Bh6 {[%emt 0:00:30]} 27. Ra7 {[%emt 0:00:30]} Bc1 {[%emt 0:00:30]} 28. Nc4 {[%emt 0:00:30][%cal Oa7a1]} Nd6 {[%emt 0:00:30]} 29. Nxe5 {[%emt 0:00:30]} Bxb2 {[%emt 0:00:30]} 30. Nc6 {[%emt 0:00:30]} Rf8 {[%emt 0:00:30]} 31. Ne7+ {[%emt 0:00:30]} Kg7 {[%emt 0:00:30]} 32. Nd5 {[%emt 0:00:30]} Rb8 {[%emt 0:00:30]} 33. Rc7 {[%emt 0:00:30]} Rc8 {[%emt 0:00:30]} 34. Rd7 {[%emt 0:00:30]} Nc4 {[%emt 0:00:30] and ...Ne5 would now be decisive} 35. Be2 {[%emt 0:00:30]} Ne5 {[%emt 0:00:30]} 36. Re7 {[%emt 0:00:30]} Nc6 {[%emt 0:00:30]} 37. Rb7 {[%emt 0:00:30]} Rd8 $2 {[%emt 0:00:30][%mdl 8192]} (37... Bc1 $14) 38. Rxb2 $18 {[%emt 0:00:30]} Rxd5 {[%emt 0:00:30] [#]} 39. Bf3 $1 {[%emt 0:00:30] Weighted Error Value: White=0.07 (flawless) /Black=0.23 (precise)   Loses game:     	---       	Black=1      Inaccurate:     	White=4     	Black=3      OK:         	White=17    	Black=16     Best:        	White=2     	Black=3      Strong:       	White=2     	---} 1-0

[Event "Silves Open 2025"]
[Site "Fissul"]
[Date "2025.03.03"]
[Round "3.14"]
[White "De Kruif, Kees"]
[Black "Kuegel, Tobias"]
[Result "0-1"]
[Annotator "TA"]
[ECO "A00"]
[WhiteElo "1857"]
[BlackElo "2423"]
[PlyCount "28"]
[EventDate "2025.03.03"]
[EventType "swiss"]
[EventCountry "POR"]
[SourceTitle "playchess.com"]
[Source "ChessBase"]
[SourceQuality "1"]
[TimeControl "5400+30"]

{[%evp 10,28,-20,-20,-24,-14,-21,-28,-13,-18,5,-65,-77,-66,-103,-82,-59,-113,-22,-29997,-29998]} 1. b4 {[%emt 0:00:08]} e5 {[%emt 0:00:47]} 2. Bb2 {[%emt 0:00:06]} Bxb4 {[%emt 0:00:07]} 3. Bxe5 {[%emt 0:00:05]} Nf6 {[%emt 0:00:07]} 4. Nf3 {[%emt 0:00:09]} O-O {[%emt 0:00:23]} 5. e3 {[%emt 0:00:15]} d5 {[%emt 0:00:14]} 6. c4 {[%emt 0:00:48]} c5 {[%emt 0:00:07] A00: Irregular Openings.} 7. cxd5 {[%emt 0:04:51]} Nxd5 {[%emt 0:00:14]} 8. Qc2 {[%emt 0:09:02] Prevents Bf5} Nc6 {[%emt 0:02:29] [#] and ...Nxe5 should not be overlooked. Black has an edge.} 9. Bb2 {[%emt 0:00:25]} Re8 {[%emt 0:07:06]} 10. Nc3 $146 {[%emt 0:09:38]} (10. Bd3 $11) (10. a3 Ba5 11. Qxc5 Bb6 12. Qc4 Na5 13. Qa4 Bf5 14. Nc3 Rc8 15. Be2 Nxc3 16. Bxc3 {0-1 Teichmann,E (2312)-Karthikeyan,M (2517) Montcada op-A 24th 2016 (6)}) 10... Nd4 $15 {[%emt 0:07:16]} 11. Nxd4 {[%emt 0:02:57]} cxd4 $40 {[%emt 0:00:11][%mdl 128] Black wants a kill.} 12. Nxd5 {[%emt 0:01:31]} Qxd5 {[%emt 0:00:02]} 13. Bc4 {[%emt 0:02:28] [#]} (13. Qa4 $2 Bxd2+ 14. Kxd2 dxe3+ 15. Kc3 Bd7 $19 (15... Qd2+ $2 16. Kb3 $19)) (13. Qd3 $1 $15) 13... dxe3 {[%emt 0:04:09] Black is much more active. The white rooks are passive.} 14. Bxd5 $4 {[%emt 0:01:04][%mdl 8192] A sharp opening} (14. O-O $11 Qxd2 15. Qb3) 14... exd2+ {[%emt 0:00:08] Weighted Error Value: White=0.63/Black=0.21 (precise)   Loses game:     	White=1     	---        Mistake:       	White=2     	Black=1      OK:         	White=2     	Black=2      Best:        	White=1     	Black=1} 0-1

[Event "Silves Open 2025"]
[Site "Fissul"]
[Date "2025.03.03"]
[Round "3.16"]
[White "Ryabukhina, Veronika"]
[Black "Serarols Mabras, Bernat"]
[Result "0-1"]
[Annotator "TA"]
[ECO "D26"]
[WhiteElo "1880"]
[BlackElo "2311"]
[PlyCount "90"]
[EventDate "2025.03.03"]
[EventType "swiss"]
[EventCountry "POR"]
[SourceTitle "playchess.com"]
[Source "ChessBase"]
[SourceQuality "1"]
[TimeControl "5400+30"]

{[%evp 12,90,12,18,21,8,28,-3,0,-1,12,0,0,0,0,8,0,-37,-59,-46,-45,-77,-46,-31,-29,-37,-23,-55,-36,-48,-21,-39,-50,-29,-18,-69,-68,-74,-67,-173,-177,-210,-202,-255,-254,-252,-245,-233,-248,-241,-235,-238,-247,-233,-245,-238,-211,-346,-346,-401,-316,-322,-292,-268,-197,-352,-205,-279,-227,-297,-272,-360,-334,-235,-111,-111,-111,-345,-328,-305,-305]} 1. d4 {[%emt 0:00:23]} d5 {[%emt 0:04:23]} 2. c4 {[%emt 0:00:13]} e6 {[%emt 0:00:11]} 3. Nf3 {[%emt 0:00:22]} a6 {[%emt 0:00:05]} 4. e3 {[%emt 0:03:14]} Nf6 {[%emt 0:01:29]} 5. Nc3 {[%emt 0:00:38]} dxc4 {[%emt 0:00:13]} 6. a4 {[%emt 0:02:40]} c5 {[%emt 1:27:09]} 7. Bxc4 {[%emt 0:00:31]} cxd4 {[%emt 0:00:00] D26: Queen's Gambit Accepted: 4 e3 e6 5 Bxc5 c5 sidelines.} 8. exd4 {[%emt 0:01:38]} Nbd7 {[%emt 0:00:00]} 9. a5 {[%emt 0:10:50]} b5 {[%emt 0:00:00] The position is equal.} 10. axb6 {[%emt 0:00:44]} Nxb6 {[%emt 0:00:00]} (10... Bb4 11. O-O O-O 12. Bb3 Bb7) 11. Be2 $146 {[%emt 0:01:23]} (11. Bd3 Nfd5 12. O-O Nxc3 13. bxc3 Qc7 14. Bd2 Be7 15. Qe2 O-O 16. c4 Qa7 17. Ne5 {½-½ Ribeiro,A (1856)-Zampronha,W (2147) Sao Paulo IRT op 3rd 2013 (3)}) 11... Be7 {[%emt 0:00:00]} 12. O-O {[%emt 0:01:18]} O-O {[%emt 0:00:00]} 13. Ne5 {[%emt 0:10:51]} Bb7 {[%emt 0:00:00]} 14. Nc4 {[%emt 0:02:00]} Nxc4 {[%emt 0:00:00]} 15. Bxc4 {[%emt 0:00:12]} Qb6 {[%emt 0:00:00][%cal Ob7g2]} 16. Qb3 {[%emt 0:06:55]} Qxb3 {[%emt 0:00:00]} (16... Qxd4 $2 {too greedy.} 17. Qxb7 Qxc4 18. Qxe7 $18) (16... Qc7 {is interesting.} 17. Bf4 Qxf4 18. Qxb7 Qxd4 19. Bxa6 Bd6) 17. Bxb3 {[%emt 0:00:18]} Rfd8 {[%emt 0:00:00]} 18. Rd1 {[%emt 0:01:13]} h6 {[%emt 0:00:00]} 19. f3 {[%emt 0:01:08]} Bb4 {[%emt 0:00:00]} 20. Be3 {[%emt 0:06:54]} Rac8 {[%emt 0:00:00]} 21. Rac1 {[%emt 0:07:43]} a5 {[%emt 0:07:30]} 22. Na2 {[%emt 0:02:10]} Bd5 {[%emt 0:00:00]} 23. Bxd5 {[%emt 0:00:30]} (23. Rxc8 $11 Rxc8 24. Bxd5 Nxd5 25. Rc1) 23... Nxd5 $15 {[%emt 0:00:00]} 24. Bd2 {[%emt 0:01:59]} Rxc1 {[%emt 0:00:00]} 25. Bxc1 {[%emt 0:03:21] [#]} (25. Nxc1 $15 Bxd2 26. Rxd2) 25... Rc8 $1 $19 {[%emt 0:00:00]} 26. Kf2 {[%emt 0:21:10]} Rc2+ {[%emt 0:00:00]} 27. Kg3 {[%emt 0:00:12]} Bd6+ {[%emt 0:00:00]} 28. Kh3 {[%emt 0:00:33]} Bf4 {[%emt 0:00:00] Inhibits Rd2.} 29. g3 {[%emt 0:01:16]} Bxc1 {[%emt 0:00:00]} 30. Rxc1 {[%emt 0:00:09]} Rxb2 {[%emt 0:00:00]} 31. Nc3 {[%emt 0:00:37]} Nxc3 {[%emt 0:00:00]} 32. Rxc3 {[%emt 0:00:12][%mdl 4096] Endgame KR-KR. Black is a pawn up.} a4 {[%emt 0:00:00]} 33. Rc8+ {[%emt 0:04:42]} Kh7 {[%emt 0:00:00]} 34. g4 {[%emt 0:00:41]} (34. Ra8 $142) 34... g5 {[%emt 0:00:00]} 35. Kg3 {[%emt 0:01:33]} a3 {[%emt 0:00:00]} 36. Rc3 {[%emt 0:00:30]} a2 {[%emt 0:00:00]} 37. Ra3 {[%emt 0:00:30]} Kg6 {[%emt 0:00:00]} 38. h4 $2 {[%emt 0:00:30]} (38. Ra6) 38... Kf6 {[%emt 0:00:00]} (38... f5 $142 39. hxg5 hxg5 (39... Kxg5 40. Ra5 $17) 40. gxf5+ exf5 (40... Kxf5 41. Ra5+ Kf6 42. f4 $17) 41. Ra6+ Kf7) 39. Ra7 {[%emt 0:00:30]} Kg7 {[%emt 0:00:00]} 40. hxg5 {[%emt 0:00:30]} hxg5 {[%emt 0:00:00]} 41. f4 {[%emt 0:00:30] [#]} Rb3+ $1 {[%emt 0:00:00]} 42. Kf2 {[%emt 0:00:30]} Rd3 {[%emt 0:00:00]} (42... gxf4 $19 {...Rh3 is the strong threat.} 43. Rxa2 Rd3 (43... Rg3 44. Ra7 $17)) 43. fxg5 $17 {[%emt 0:00:30]} Rxd4 {[%emt 0:00:00]} 44. Rxa2 {[%emt 0:00:30]} (44. Kg3 $17) 44... Rxg4 $19 {[%emt 0:00:01]} 45. Kf3 {[%emt 0:00:30]} Rxg5 {[%emt 0:00:30] Weighted Error Value: White=0.37/Black=0.23 (precise)   Loses game:     	White=1     	---        Mistake:       	White=4     	Black=2      Inaccurate:     	White=6     	Black=2      OK:         	White=7     	Black=15     Best:        	White=7     	Black=2      Strong:       	---       	Black=2} 0-1